fUSD/lending_fUSD_20240122
["ID","MTS","AMOUNT","RATE_DAILY","PERIOD"]
[312510111,1705935383793,-1103.75,0.00058082,120]
[312510112,1705935383829,-500.0,0.00058082,120]
[312510113,1705935383864,-751.87,0.00058082,120]
[312510114,1705935383899,-3237.18,0.00058082,120]
[312510115,1705935383933,-2009.92,0.00058082,120]
[312510116,1705935383976,-789.59,0.00058082,120]
[312510117,1705935384013,-685.82,0.00058082,120]
[312510118,1705935384049,-500.0,0.00058082,120]
[312510119,1705935384085,-4264.33,0.00058082,120]
[312510120,1705935384123,-1535.34,0.00058082,120]
[312510121,1705935384160,-809.7,0.00058082,120]
[312510122,1705935384202,-1154.09,0.00058082,120]
[312510123,1705935384242,-1697.89,0.00058082,120]
[312510124,1705935384278,-1596.19,0.00058082,120]
[312510125,1705935384314,-964.24,0.00058082,120]
[312510126,1705935384348,-1154.51,0.00058082,120]
[312510127,1705935384385,-1595.7,0.00058082,120]
[312510128,1705935384421,-500.0,0.00058082,120]
[312510129,1705935384457,-2914.21,0.00058082,120]
[312510130,1705935384491,-1552.88,0.00058082,120]
[312510131,1705935384526,-608.04,0.00058082,120]
[312510132,1705935384562,-980.8,0.00058082,120]
[312510133,1705935384597,-700.43,0.00058082,120]
[312510134,1705935384632,-1757.28,0.00058082,120]
[312510135,1705935384668,-696.01,0.00058082,120]
[312510136,1705935384704,-1171.38,0.00058082,120]
[312510137,1705935384740,-665.51,0.00058082,120]
[312510138,1705935384776,-1708.66,0.00058082,120]
[312510139,1705935384814,-559.65,0.00058082,120]
[312510140,1705935384855,-1273.88,0.00058082,120]
[312510141,1705935384896,-536.79,0.00058082,120]
[312510142,1705935384936,-520.77,0.00058082,120]
[312510143,1705935384977,-1047.69,0.00058082,120]
[312510144,1705935385022,-1774.41,0.00058082,120]
[312510145,1705935385060,-1003.68,0.00058082,120]
[312510146,1705935385097,-714.84,0.00058082,120]
[312510147,1705935385135,-2030.56,0.00058082,120]
[312510148,1705935385173,-1882.22,0.00058082,120]
[312510149,1705935385213,-500.0,0.00058082,120]
[312510150,1705935385252,-1118.09,0.00058082,120]
[312510151,1705935385294,-1661.46,0.00058082,120]
[312510152,1705935385333,-2145.54,0.00058082,120]
[312510153,1705935385371,-500.0,0.00058082,120]
[312510154,1705935385415,-150.40437152,0.00058256,75]
[312510155,1705935385458,-150.0,0.0005834,60]
[312510156,1705935385500,-500.0,0.00058356,120]
[312510157,1705935385541,-500.0,0.00058356,120]
[312510158,1705935385577,-500.0,0.00058356,120]
[312510159,1705935385612,-559.06,0.00058356,120]
[312510160,1705935385812,-500.0,0.00058356,120]
[312510161,1705935385850,-500.0,0.00058356,120]
[312510162,1705935385886,-500.0,0.00058356,120]
[312510163,1705935385920,-500.0,0.00058356,120]
[312510164,1705935385954,-500.0,0.00058356,120]
[312510165,1705935385989,-500.0,0.00058356,120]
[312510166,1705935386026,-500.0,0.00058356,120]
[312510167,1705935386060,-500.0,0.00058356,120]
[312510168,1705935386095,-500.0,0.00058356,120]
[312510169,1705935386131,-626.59,0.00058356,120]
[312510170,1705935386166,-500.0,0.00058356,120]
[312510171,1705935386203,-342.38739488,0.00058356,120]
[312510172,1705935386242,-711.06,0.00058356,120]
[312510173,1705935386279,-714.27,0.00058356,120]
[312510174,1705935386315,-918.11,0.00058356,120]
[312510175,1705935386351,-687.84,0.00058356,120]
[312510176,1705935386390,-500.0,0.00058356,120]
[312510177,1705935386431,-587.61,0.00058356,120]
[312510178,1705935386468,-500.0,0.00058356,120]
[312510179,1705935386502,-882.35,0.00058356,120]
[312510180,1705935386537,-831.94,0.00058356,120]
[312510181,1705935386571,-1066.83,0.00058356,120]
[312510182,1705935386607,-506.4,0.00058356,120]
[312510183,1705935386641,-500.0,0.00058356,120]
[312510184,1705935386675,-692.09,0.00058356,120]
[312510185,1705935386709,-500.0,0.00058356,120]
[312510186,1705935386743,-500.0,0.00058356,120]
[312510187,1705935386776,-548.63,0.00058356,120]
[312510188,1705935386809,-726.93,0.00058356,120]
[312510189,1705935386842,-500.0,0.00058356,120]
[312510190,1705935386876,-801.5,0.00058356,120]
[312510191,1705935386910,-533.44,0.00058356,120]
[312510192,1705935386943,-500.0,0.00058356,120]
[312510193,1705935386977,-500.0,0.00058356,120]
[312510194,1705935387014,-517.9,0.00058356,120]
[312510195,1705935387050,-500.0,0.00058356,120]
[312510196,1705935387084,-500.0,0.00058356,120]
[312510197,1705935387119,-500.0,0.00058356,120]
[312510198,1705935387153,-539.03,0.00058356,120]
[312510199,1705935387187,-500.0,0.00058356,120]
[312510200,1705935387223,-541.94,0.00058356,120]
[312510201,1705935387257,-628.32,0.00058356,120]
[312510202,1705935387294,-1064.71,0.00058356,120]
[312510203,1705935387343,-500.0,0.00058356,120]
[312510204,1705935387378,-500.0,0.00058356,120]
[312510205,1705935387418,-500.0,0.00058356,120]
[312510206,1705935387454,-500.0,0.00058356,120]
[312510207,1705935387488,-500.0,0.00058356,120]
[312510208,1705935387522,-688.57,0.00058356,120]
[312510209,1705935387556,-515.35,0.00058356,120]
[312510210,1705935387592,-500.0,0.00058356,120]
[312510211,1705935387627,-532.26,0.00058356,120]
[312510212,1705935387661,-429.58,0.00058356,120]
[312510213,1705935387694,-511.93,0.00058356,120]
[312510214,1705935387727,-852.71,0.00058356,120]
[312510215,1705935387759,-500.0,0.00058356,120]
[312510216,1705935387796,-749.91,0.00058356,120]
[312510217,1705935387828,-500.0,0.00058356,120]
[312510218,1705935387860,-500.0,0.00058356,120]
[312510219,1705935387893,-500.0,0.00058356,120]
[312510220,1705935387925,-500.0,0.00058356,120]
[312510221,1705935387957,-706.74,0.00058356,120]
[312510222,1705935387990,-500.0,0.00058356,120]
[312510223,1705935388025,-500.0,0.00058356,120]
[312510224,1705935388060,-681.22,0.00058356,120]
[312510225,1705935388095,-500.0,0.00058356,120]
[312510226,1705935388131,-520.16,0.00058356,120]
[312510227,1705935388166,-978.9,0.00058356,120]
[312510228,1705935388202,-1380.88,0.00058356,120]
[312510229,1705935388236,-570.7,0.00058356,120]
[312510230,1705935388270,-500.0,0.00058356,120]
[312510231,1705935388305,-1255.4,0.00058356,120]
[312510232,1705935388339,-1221.5,0.00058356,120]
[312510233,1705935388374,-1447.81,0.00058356,120]
[312510234,1705935388409,-500.0,0.00058356,120]
[312510235,1705935388448,-500.0,0.00058356,120]
[312510236,1705935388484,-2684.03,0.00058356,120]
[312510237,1705935388520,-970.29,0.00058356,120]
[312510238,1705935388553,-1726.87,0.00058356,120]
[312510239,1705935388590,-709.57,0.00058356,120]
[312510240,1705935388626,-556.49,0.00058356,120]
[312510241,1705935388661,-203.97053338,0.00058356,120]
[312510242,1705935388694,-1387.83,0.00058356,120]
[312510243,1705935388728,-717.18,0.00058356,120]
[312510244,1705935388761,-1397.88,0.00058356,120]
[312510245,1705935388799,-610.22,0.00058356,120]
[312510246,1705935388832,-1037.49,0.00058356,120]
[312510247,1705935388865,-937.59,0.00058356,120]
[312510248,1705935388898,-510.67,0.00058356,120]
[312510249,1705935388933,-721.94,0.00058356,120]
[312510250,1705935388969,-658.41,0.00058356,120]
[312510251,1705935389004,-500.0,0.00058356,120]
[312510252,1705935389041,-1324.43,0.00058356,120]
[312510253,1705935389075,-1074.78,0.00058356,120]
[312510254,1705935389109,-854.08,0.00058356,120]
[312510255,1705935389142,-500.0,0.00058356,120]
[312510256,1705935389175,-669.07,0.00058356,120]
[312510257,1705935389210,-1043.64,0.00058356,120]
[312510258,1705935389246,-500.0,0.00058356,120]
[312510259,1705935389281,-1068.91,0.00058356,120]
[312510260,1705935389315,-1264.76,0.00058356,120]
[312510261,1705935389350,-537.28,0.00058356,120]
[312510262,1705935389384,-503.39509401,0.00058356,120]
[312510263,1705935389583,-738.6,0.00058356,120]
[312510264,1705935389618,-660.61,0.00058356,120]
[312510265,1705935389653,-500.0,0.00058356,120]
[312510266,1705935389687,-700.4,0.00058356,120]
[312510267,1705935389723,-588.43397238,0.00058356,120]
[312510268,1705935389761,-821.95,0.00058356,120]
[312510269,1705935389798,-648.78,0.00058356,120]
[312510270,1705935389831,-722.7,0.00058356,120]
[312510271,1705935389871,-1066.38,0.00058356,120]
[312510272,1705935389906,-2325.98,0.00058356,120]
[312510273,1705935389939,-500.0,0.00058356,120]
[312510274,1705935389974,-1073.56,0.00058356,120]
[312510275,1705935390011,-536.6984348,0.00058356,120]
[312510276,1705935390050,-972.0,0.00058356,120]
[312510277,1705935390087,-532.36,0.00058356,120]
[312510278,1705935390122,-1793.95,0.00058356,120]
[312510279,1705935390157,-500.0,0.00058356,120]
[312510280,1705935390192,-500.0,0.00058356,120]
[312510281,1705935390227,-1245.11,0.00058356,120]
[312510282,1705935390261,-960.21,0.00058356,120]
[312510283,1705935390297,-500.0,0.00058356,120]
[312510284,1705935390331,-1202.84,0.00058356,120]
[312510285,1705935390365,-500.0,0.00058356,120]
[312510286,1705935390405,-1089.12,0.00058356,120]
[312510287,1705935390442,-674.26,0.00058356,120]
[312510288,1705935390477,-1121.58,0.00058356,120]
[312510289,1705935390512,-1148.71,0.00058356,120]
[312510290,1705935390549,-782.17,0.00058356,120]
[312510291,1705935390584,-500.0,0.00058356,120]
[312510292,1705935390620,-1269.81,0.00058356,120]
[312510293,1705935390655,-1163.79,0.00058356,120]
[312510294,1705935390691,-755.55,0.00058356,120]
[312510295,1705935390725,-590.73,0.00058356,120]
[312510296,1705935390760,-500.0,0.00058356,120]
[312510297,1705935390796,-653.94,0.00058356,120]
[312510298,1705935390830,-1082.1,0.00058356,120]
[312510299,1705935390863,-505.8462977,0.00058356,120]
[312510300,1705935390899,-1119.29,0.00058356,120]
[312510301,1705935390933,-884.87,0.00058356,120]
[312510302,1705935390967,-590.44,0.00058356,120]
[312510303,1705935391002,-1021.29,0.00058356,120]
[312510304,1705935391037,-557.86,0.00058356,120]
[312510305,1705935391074,-500.0,0.00058356,120]
[312510306,1705935391109,-922.84,0.00058356,120]
[312510307,1705935391144,-1360.93,0.00058356,120]
[312510308,1705935391178,-854.16,0.00058356,120]
[312510309,1705935391213,-500.0,0.00058356,120]
[312510310,1705935391251,-612.83,0.00058356,120]
[312510311,1705935391285,-763.7,0.00058356,120]
[312510312,1705935391320,-500.0,0.00058356,120]
[312510313,1705935391355,-862.53,0.00058356,120]
[312510314,1705935391394,-709.99,0.00058356,120]
[312510315,1705935391428,-716.16,0.00058356,120]
[312510316,1705935391465,-743.65,0.00058356,120]
[312510317,1705935391499,-500.0,0.00058356,120]
[312510318,1705935391533,-765.86,0.00058356,120]
[312510319,1705935391569,-501.89,0.00058356,120]
[312510320,1705935391609,-1960.91,0.00058356,120]
[312510321,1705935391644,-500.0,0.00058356,120]
[312510322,1705935391679,-864.85,0.00058356,120]
[312510323,1705935391712,-895.93,0.00058356,120]
[312510324,1705935391745,-375.02,0.00058356,120]
[312510325,1705935391779,-652.75,0.00058356,120]
[312510326,1705935391812,-1017.75,0.00058356,120]
[312510327,1705935391847,-718.71,0.00058356,120]
[312510328,1705935391883,-950.95,0.00058356,120]
[312510329,1705935391919,-1166.26,0.00058356,120]
[312510330,1705935391955,-1163.88,0.00058356,120]
[312510331,1705935391990,-706.58,0.00058356,120]
[312510332,1705935392029,-500.0,0.00058356,120]
[312510333,1705935392067,-775.78,0.00058356,120]
[312510334,1705935392102,-1841.93,0.00058356,120]
[312510335,1705935392138,-604.25,0.00058356,120]
[312510336,1705935392176,-744.8,0.00058356,120]
[312510337,1705935392212,-500.0,0.00058356,120]
[312510338,1705935392247,-803.23,0.00058356,120]
[312510339,1705935392283,-1391.49,0.00058356,120]
[312510340,1705935392319,-500.0,0.00058356,120]
[312510341,1705935392360,-743.79,0.00058356,120]
[312510342,1705935392404,-758.95,0.00058356,120]
[312510343,1705935392444,-575.63,0.00058356,120]
[312510344,1705935392481,-510.30998854,0.00058356,120]
[312510345,1705935392522,-805.81,0.00058356,120]
[312510346,1705935392558,-869.66,0.00058356,120]
[312510347,1705935392594,-500.0,0.00058356,120]
[312510348,1705935392629,-907.16,0.00058356,120]
[312510349,1705935392667,-789.34,0.00058356,120]
[312510350,1705935392702,-619.23,0.00058356,120]
[312510351,1705935392737,-1452.65,0.00058356,120]
[312510352,1705935392775,-696.15,0.00058356,120]
[312510353,1705935392812,-593.79,0.00058356,120]
[312510354,1705935392849,-500.0,0.00058356,120]
[312510355,1705935392884,-836.62,0.00058356,120]
[312510356,1705935392918,-1334.13,0.00058356,120]
[312510357,1705935392954,-837.72,0.00058356,120]
[312510358,1705935392988,-623.18,0.00058356,120]
[312510359,1705935393026,-1323.21,0.00058356,120]
[312510360,1705935393065,-557.03,0.00058356,120]
[312510361,1705935393103,-609.57,0.00058356,120]
[312510362,1705935393144,-1742.89,0.00058356,120]
[312510363,1705935393186,-951.02,0.00058356,120]
[312510364,1705935393226,-500.0,0.00058356,120]
[312510365,1705935393262,-650.96,0.00058356,120]
[312510366,1705935393298,-762.89,0.00058356,120]
[312510367,1705935393531,-500.0,0.00058356,120]
[312510368,1705935393566,-659.39,0.00058356,120]
[312510369,1705935393600,-500.0,0.00058356,120]
[312510370,1705935393634,-644.53623766,0.00058356,120]
[312510371,1705935393668,-651.75,0.00058356,120]
[312510372,1705935393701,-500.0,0.00058356,120]
[312510373,1705935393735,-365.29158901,0.00058356,120]
[312510374,1705935393771,-852.44,0.00058356,120]
[312510375,1705935393807,-500.0,0.00058356,120]
[312510376,1705935393841,-1607.72,0.00058356,120]
[312510377,1705935393876,-1788.51,0.00058356,120]
[312510378,1705935393910,-500.0,0.00058356,120]
[312510379,1705935393948,-744.04,0.00058356,120]
[312510380,1705935393985,-669.85,0.00058356,120]
[312510381,1705935394025,-645.14,0.00058356,120]
[312510382,1705935394061,-500.0,0.00058356,120]
[312510383,1705935394096,-608.8,0.00058356,120]
[312510384,1705935394131,-702.16,0.00058356,120]
[312510385,1705935394165,-559.87,0.00058356,120]
[312510386,1705935394199,-500.0,0.00058356,120]
[312510387,1705935394233,-1326.85,0.00058356,120]
[312510388,1705935394270,-1490.02,0.00058356,120]
[312510389,1705935394304,-1404.36,0.00058356,120]
[312510390,1705935394339,-500.0,0.00058356,120]
[312510391,1705935394374,-1273.58,0.00058356,120]
[312510392,1705935394409,-500.0,0.00058356,120]
[312510393,1705935394445,-1577.88,0.00058356,120]
[312510394,1705935394483,-850.44,0.00058356,120]
[312510395,1705935394521,-500.0,0.00058356,120]
[312510396,1705935394559,-665.34,0.00058356,120]
[312510397,1705935394595,-500.0,0.00058356,120]
[312510398,1705935394633,-836.88,0.00058356,120]
[312510399,1705935394671,-500.0,0.00058356,120]
[312510400,1705935394707,-1144.66,0.00058356,120]
[312510401,1705935394744,-500.0,0.00058356,120]
[312510402,1705935394781,-418.98993528,0.00058356,120]
[312510403,1705935394816,-649.5,0.00058356,120]
[312510404,1705935394851,-1273.46,0.00058356,120]
[312510405,1705935394887,-500.0,0.00058356,120]
[312510406,1705935394922,-1047.97,0.00058356,120]
[312510407,1705935394957,-500.0,0.00058356,120]
[312510408,1705935394996,-600.2,0.00058356,120]
[312510409,1705935395039,-754.61,0.00058356,120]
[312510410,1705935395080,-852.62,0.00058356,120]
[312510411,1705935395120,-274.19907547,0.00058356,120]
[312510412,1705935395160,-1099.97,0.00058356,120]
[312510413,1705935395199,-500.0,0.00058356,120]
[312510414,1705935395240,-836.94,0.00058356,120]
[312510415,1705935395284,-857.36,0.00058356,120]
[312510416,1705935395327,-597.17,0.00058356,120]
[312510417,1705935395370,-500.0,0.00058356,120]
[312510418,1705935395415,-1527.68,0.00058356,120]
[312510419,1705935395460,-806.43,0.00058356,120]
[312510420,1705935395504,-2110.23,0.00058356,120]
[312510421,1705935395545,-500.0,0.00058356,120]
[312510422,1705935395585,-552.99,0.00058356,120]
[312510423,1705935395626,-1034.47,0.00058356,120]
[312510424,1705935395664,-1707.75,0.00058356,120]
[312510425,1705935395701,-1844.2,0.00058356,120]
[312510426,1705935395739,-1129.13,0.00058356,120]
[312510427,1705935395777,-599.85,0.00058356,120]
[312510428,1705935395816,-500.0,0.00058356,120]
[312510429,1705935395855,-932.99,0.00058356,120]
[312510430,1705935395895,-2637.9,0.00058356,120]
[312510431,1705935395938,-756.66,0.00058356,120]
[312510432,1705935395979,-1394.47,0.00058356,120]
[312510433,1705935396017,-500.0,0.00058356,120]
[312510434,1705935396065,-591.22,0.00058356,120]
[312510435,1705935396103,-1651.7,0.00058356,120]
[312510436,1705935396143,-970.35,0.00058356,120]
[312510437,1705935396183,-506.16,0.00058356,120]
[312510438,1705935396224,-500.0,0.00058356,120]
[312510439,1705935396265,-920.91,0.00058356,120]
[312510440,1705935396316,-752.54,0.00058356,120]
[312510441,1705935396361,-653.54,0.00058356,120]
[312510442,1705935396409,-1751.16,0.00058356,120]
[312510443,1705935396451,-652.01,0.00058356,120]
[312510444,1705935396493,-631.92,0.00058356,120]
[312510445,1705935396532,-650.78,0.00058356,120]
[312510446,1705935396572,-752.76,0.00058356,120]
[312510447,1705935396611,-500.0,0.00058356,120]
[312510448,1705935396650,-2270.34,0.00058356,120]
[312510449,1705935396690,-1786.0,0.00058356,120]
[312510450,1705935396725,-500.0,0.00058356,120]
[312510451,1705935396761,-1361.82,0.00058356,120]
[312510452,1705935396800,-3797.03,0.00058356,120]
[312510453,1705935396834,-1781.02,0.00058356,120]
[312510454,1705935396869,-1756.9,0.00058356,120]
[312510455,1705935396903,-790.71,0.00058356,120]
[312510456,1705935396938,-1364.57,0.00058356,120]
[312510457,1705935396972,-598.0,0.00058356,120]
[312510458,1705935397007,-609.8,0.00058356,120]
[312510459,1705935397041,-543.53,0.00058356,120]
[312510460,1705935397077,-1240.73,0.00058356,120]
[312510461,1705935397122,-1909.96,0.00058356,120]
[312510462,1705935397164,-12125.73,0.00058356,120]
[312510463,1705935397202,-761.51,0.00058356,120]
[312510464,1705935397238,-2651.29,0.00058356,120]
[312510465,1705935397278,-500.0,0.00058356,120]
[312510466,1705935397316,-1183.91,0.00058356,120]
[312510467,1705935397354,-1284.7,0.00058356,120]
[312510468,1705935397395,-500.0,0.00058356,120]
[312510469,1705935397435,-5137.25,0.00058356,120]
[312510470,1705935397476,-1103.44,0.00058356,120]
[312510471,1705935397739,-500.0,0.00058356,120]
[312510472,1705935397779,-500.0,0.00058356,120]
[312510473,1705935397815,-500.0,0.00058356,120]
[312510474,1705935397850,-500.0,0.00058356,120]
[312510475,1705935397887,-2169.34,0.00058356,120]
[312510476,1705935397922,-12713.95,0.00058356,120]
[312510477,1705935397958,-1882.98,0.00058356,120]
[312510478,1705935397994,-967.39,0.00058356,120]
[312510479,1705935398029,-1657.15,0.00058356,120]
[312510480,1705935398065,-943.25,0.00058356,120]
[312510481,1705935398102,-500.0,0.00058356,120]
[312510482,1705935398137,-1729.69,0.00058356,120]
[312510483,1705935398172,-606.66,0.00058356,120]
[312510484,1705935398214,-569.65,0.00058356,120]
[312510485,1705935398252,-2125.62,0.00058356,120]
[312510486,1705935398287,-1419.55,0.00058356,120]
[312510487,1705935398322,-1565.88,0.00058356,120]
[312510488,1705935398358,-689.11,0.00058356,120]
[312510489,1705935398398,-1689.91,0.00058356,120]
[312510490,1705935398437,-1921.07,0.00058356,120]
[312510491,1705935398472,-700.71,0.00058356,120]
[312510492,1705935398507,-2015.32,0.00058356,120]
[312510493,1705935398540,-500.0,0.00058356,120]
[312510494,1705935398574,-1539.91,0.00058356,120]
[312510495,1705935398609,-1927.03,0.00058356,120]
[312510496,1705935398643,-1314.85,0.00058356,120]
[312510497,1705935398677,-1686.46,0.00058356,120]
[312510498,1705935398710,-500.0,0.00058356,120]
[312510499,1705935398745,-677.55,0.00058356,120]
[312510500,1705935398780,-1985.74,0.00058356,120]
[312510501,1705935398815,-550.06,0.00058356,120]
[312510502,1705935398850,-712.03,0.00058356,120]
[312510503,1705935398884,-736.61,0.00058356,120]
[312510504,1705935398920,-4762.26,0.00058356,120]
[312510505,1705935398956,-2461.8,0.00058356,120]
[312510506,1705935398992,-1259.3,0.00058356,120]
[312510507,1705935399032,-1880.63,0.00058356,120]
[312510508,1705935399069,-1557.26,0.00058356,120]
[312510509,1705935399105,-793.99,0.00058356,120]
[312510510,1705935399142,-1379.69,0.00058356,120]
[312510511,1705935399179,-500.0,0.00058356,120]
[312510512,1705935399215,-2604.87,0.00058356,120]
[312510513,1705935399250,-932.81,0.00058356,120]
[312510514,1705935399285,-500.0,0.00058356,120]
[312510515,1705935399322,-500.0,0.00058356,120]
[312510516,1705935399358,-3105.23,0.00058356,120]
[312510517,1705935399400,-1967.28,0.00058356,120]
[312510518,1705935399441,-504.66,0.00058356,120]
[312510519,1705935399489,-2108.57,0.00058356,120]
[312510520,1705935399533,-5534.47,0.00058356,120]
[312510521,1705935399571,-1147.57,0.00058356,120]
[312510522,1705935399610,-2822.45,0.00058356,120]
[312510523,1705935399646,-1151.76,0.00058356,120]
[312510524,1705935399682,-504.79,0.00058356,120]
[312510525,1705935399717,-828.94,0.00058356,120]
[312510526,1705935399751,-1921.76,0.00058356,120]
[312510527,1705935399787,-500.0,0.00058356,120]
[312510528,1705935399823,-517.22,0.00058356,120]
[312510529,1705935399859,-836.23,0.00058356,120]
[312510530,1705935399893,-859.23,0.00058356,120]
[312510531,1705935399927,-2987.07,0.00058356,120]
[312510532,1705935399961,-500.0,0.00058356,120]
[312510533,1705935399997,-1485.29,0.00058356,120]
[312510534,1705935400033,-699.12,0.00058356,120]
[312510535,1705935400069,-1113.39,0.00058356,120]
[312510536,1705935400105,-1325.84,0.00058356,120]
[312510537,1705935400139,-610.32,0.00058356,120]
[312510538,1705935400174,-500.0,0.00058356,120]
[312510539,1705935400209,-1197.96,0.00058356,120]
[312510540,1705935400245,-977.5,0.00058356,120]
[312510541,1705935400282,-680.84,0.00058356,120]
[312510542,1705935400318,-1447.9,0.00058356,120]
[312510543,1705935400354,-768.63,0.00058356,120]
[312510544,1705935400390,-6620.65,0.00058356,120]
[312510545,1705935400426,-4857.5,0.00058356,120]
[312510546,1705935400461,-500.0,0.00058356,120]
[312510547,1705935400498,-1199.49,0.00058356,120]
[312510548,1705935400536,-2086.5,0.00058356,120]
[312510549,1705935400573,-2054.67,0.00058356,120]
[312510550,1705935400610,-500.0,0.00058356,120]
[312510551,1705935400645,-500.0,0.00058356,120]
[312510552,1705935400683,-519.19,0.00058356,120]
[312510553,1705935400723,-886.41,0.00058356,120]
[312510554,1705935400761,-500.0,0.00058356,120]
[312510555,1705935400805,-10248.86,0.00058356,120]
[312510556,1705935400844,-1103.75,0.00058356,120]
[312510557,1705935400880,-500.0,0.00058356,120]
[312510558,1705935400916,-751.87,0.00058356,120]
[312510559,1705935400950,-3237.18,0.00058356,120]
[312510560,1705935400986,-2009.92,0.00058356,120]
[312510561,1705935401028,-789.59,0.00058356,120]
[312510562,1705935401067,-685.82,0.00058356,120]
[312510563,1705935401103,-500.0,0.00058356,120]
[312510564,1705935401138,-4264.33,0.00058356,120]
[312510565,1705935401172,-1535.34,0.00058356,120]
[312510566,1705935401206,-809.7,0.00058356,120]
[312510567,1705935401240,-1154.09,0.00058356,120]
[312510568,1705935401278,-1697.89,0.00058356,120]
[312510569,1705935401316,-1596.19,0.00058356,120]
[312510570,1705935401352,-1154.51,0.00058356,120]
[312510571,1705935401391,-964.24,0.00058356,120]
[312510572,1705935401430,-1595.7,0.00058356,120]
[312510573,1705935401469,-500.0,0.00058356,120]
[312510574,1705935401507,-2914.21,0.00058356,120]
[312510575,1705935401735,-1552.88,0.00058356,120]
[312510576,1705935401777,-608.04,0.00058356,120]
[312510577,1705935401813,-980.8,0.00058356,120]
[312510578,1705935401847,-700.43,0.00058356,120]
[312510579,1705935401881,-1757.28,0.00058356,120]
[312510580,1705935401915,-696.01,0.00058356,120]
[312510581,1705935401950,-1171.38,0.00058356,120]
[312510582,1705935401986,-665.51,0.00058356,120]
[312510583,1705935402022,-1708.66,0.00058356,120]
[312510584,1705935402060,-559.65,0.00058356,120]
[312510585,1705935402094,-1273.88,0.00058356,120]
[312510586,1705935402130,-536.79,0.00058356,120]
[312510587,1705935402165,-520.77,0.00058356,120]
[312510588,1705935402203,-1047.69,0.00058356,120]
[312510589,1705935402240,-1774.41,0.00058356,120]
[312510590,1705935402281,-1003.68,0.00058356,120]
[312510591,1705935402316,-714.84,0.00058356,120]
[312510592,1705935402353,-2030.56,0.00058356,120]
[312510593,1705935402392,-1882.22,0.00058356,120]
[312510594,1705935402428,-500.0,0.00058356,120]
[312510595,1705935402465,-1118.09,0.00058356,120]
[312510596,1705935402509,-616.22763944,0.00058356,120]
[312510597,1705935410345,941.04751524,0.00022,2]
[312510598,1705935411151,124.95342239,0.00015,14]
[312510599,1705935411174,2315.67320724,0.00015,14]
[312510600,1705935411809,1036.52476253,0.00021999,2]
[312510601,1705935411833,301.97608697,0.00021999,2]
[312510602,1705935412872,1338.5008495,0.00021999,2]
[312510603,1705935413526,360.89809472,0.00018398,2]
[312510604,1705935413627,1000.0,0.00021998,2]
[312510605,1705935413925,350.82293858,0.00021998,2]
[312510606,1705935413949,649.17706142,0.00021998,2]
[312510607,1705935414848,1000.0,0.00021998,2]
[312510608,1705935419839,-381.93576223,0.0004475,30]
[312510609,1705935419874,-381.93576223,0.0004475,30]
[312510610,1705935419908,-381.93576223,0.0004475,30]